bitfinex-derivatives/quotes_ETHF0:USTF0_20241230
["timestamp","ask_amount","ask_price","bid_price","bid_amount"]
[1735558420584,2.33663756,3420.1,3419.8,0.89264]
[1735558420585,0.29293,3420.0,3419.8,0.89264]
[1735558421885,0.29294,3419.9,3419.8,0.89264]
[1735558422186,6.27669756,3420.4,3419.7,0.29296]
[1735558422388,1.8244,3419.8,3419.6,0.29296]
[1735558422683,4.16103756,3419.8,3419.3,5.8493768]
[1735558422891,0.29298,3419.4,3419.3,4.5845768]
[1735558423896,0.29299,3419.3,3419.2,3.2078]
[1735558427488,0.29302,3419.0,3418.8,0.29303]
[1735558427683,3.2078,3419.1,3418.9,0.29303]
[1735558427883,3.50081,3419.1,3418.9,0.29303]
[1735558428085,4.4024,3419.1,3418.9,0.29303]
[1735558428284,4.4024,3419.1,3418.8,0.29303]
[1735558428285,0.29302,3419.0,3418.8,0.29303]
[1735558428486,4.4024,3419.1,3418.8,0.29303]
[1735558428689,0.29302,3419.0,3418.5,0.648]
[1735558428896,4.4024,3419.1,3418.9,0.29302]
[1735558429090,0.29302,3419.0,3418.9,0.29302]
[1735558430398,0.29303,3418.9,3418.7,0.29304]
[1735558431197,0.29304,3418.8,3418.5,0.6519]
[1735558431397,4.4024,3419.1,3418.7,0.29304]
[1735558431598,0.29303,3418.9,3418.7,0.29304]
[1735558431799,0.29302,3419.0,3418.8,0.29303]
[1735558431995,0.29303,3418.9,3418.7,0.29304]
[1735558432198,4.4024,3419.1,3418.5,0.6519]
[1735558432500,0.29305,3418.7,3418.5,0.29306]
[1735558432799,0.6144,3418.6,3418.5,0.29306]
[1735558433698,4.69542,3419.1,3418.9,0.29302]
[1735558433893,0.29302,3419.0,3418.8,0.29303]
[1735558434498,5.0168,3419.1,3418.8,0.29303]
[1735558434499,0.29303,3418.9,3418.8,0.29303]
[1735558435995,0.29303,3418.9,3418.4,0.6026]
[1735558435996,5.0168,3419.1,3418.4,0.6026]
[1735558436199,0.29304,3418.7,3418.6,0.29305]
[1735558436389,0.29304,3418.8,3418.7,0.29304]
[1735558436593,0.29303,3418.9,3418.4,0.6026]
[1735558436898,5.0168,3419.1,3418.7,0.29304]
[1735558436899,0.29304,3418.8,3418.7,0.29304]
[1735558437097,5.0168,3419.1,3418.4,0.6026]
[1735558437294,0.29304,3418.8,3418.7,0.29304]
[1735558440201,5.0168,3419.1,3418.4,0.6026]
[1735558440395,5.74935,3419.1,3418.5,0.29306]
[1735558440597,0.29306,3418.6,3418.5,0.29306]
[1735558440896,0.29307,3418.5,3418.4,0.29306]
[1735558441201,0.29307,3418.4,3418.3,3.50087]
[1735558441400,2.33663756,3418.9,3418.3,3.2078]
[1735558441604,0.29306,3418.5,3418.4,0.29306]
[1735558442104,0.29307,3418.4,3418.3,3.50088]
[1735558442305,3.2078,3418.5,3418.1,0.595]
[1735558442502,0.29308,3418.4,3418.3,0.29307]
[1735558442698,4.4444,3418.5,3418.1,0.595]
[1735558443003,0.6564,3418.4,3418.1,0.595]
[1735558443304,0.94947,3418.4,3418.3,0.29308]
[1735558443616,0.6564,3418.4,3418.3,0.29308]
[1735558443816,4.73746,3418.5,3418.1,0.595]
[1735558444118,4.73746,3418.5,3418.4,0.29307]
[1735558444606,3.2078,3419.0,3418.9,0.29303]
[1735558445215,3.50082,3419.0,3418.9,0.29303]
[1735558445412,3.2078,3419.0,3418.9,0.29303]
[1735558448212,0.29303,3418.9,3418.7,0.6432]
[1735558448413,0.29303,3418.8,3418.7,0.6432]
[1735558449010,3.2078,3419.0,3418.7,0.6432]
[1735558449011,3.2078,3419.0,3418.7,0.93624]
[1735558449212,3.50082,3419.0,3418.9,0.29303]
[1735558449610,3.2078,3419.0,3418.9,0.29303]
[1735558450012,3.2078,3419.0,3418.7,0.6432]
[1735558450518,0.29303,3418.8,3418.7,0.6432]
[1735558450908,3.2078,3419.0,3418.8,0.29303]
[1735558450909,0.29303,3418.9,3418.8,0.29303]
[1735558451113,3.50082,3419.0,3418.8,0.29303]
[1735558451512,3.2078,3419.0,3418.8,0.29303]
[1735558451718,0.29303,3418.9,3418.8,0.29303]
[1735558451922,3.50082,3419.0,3418.9,0.29303]
[1735558452117,3.2078,3419.0,3418.9,0.29303]
[1735558453025,0.29299,3419.3,3419.2,0.293]
[1735558453422,3.2078,3419.4,3419.3,0.29299]
[1735558456514,0.6247,3419.9,3419.8,0.29295]
[1735558456515,3.8325,3419.9,3419.8,0.29295]
[1735558456719,3.2078,3419.9,3419.8,0.29295]
[1735558458416,1.851,3420.4,3419.8,0.29295]
[1735558458622,3.2078,3420.5,3419.9,2.33663756]
[1735558458828,3.2078,3420.5,3420.4,0.2929]
[1735558459021,3.2078,3420.5,3420.0,0.6158]
[1735558459331,0.29291,3420.4,3420.1,0.89722]
[1735558459627,3.2078,3420.5,3419.7,0.6141]
[1735558459829,0.29293,3420.1,3419.7,0.6141]
[1735558460028,3.2078,3420.5,3419.7,0.6141]
[1735558460322,0.29292,3420.2,3419.7,0.6141]
[1735558460527,0.29293,3420.1,3419.7,0.6141]
[1735558460718,1.2595,3420.1,3419.7,0.6141]
[1735558460921,0.29295,3419.8,3419.6,0.29296]
[1735558462727,0.29295,3419.8,3419.7,0.29296]
[1735558462928,0.29295,3419.8,3419.4,0.6329]
[1735558463128,0.29295,3419.8,3419.7,0.29296]
[1735558463330,0.6199,3420.0,3419.4,0.6329]
[1735558463627,0.6199,3420.0,3419.9,0.29294]
[1735558463827,0.6199,3420.0,3419.4,0.6329]
[1735558464330,4.4673,3420.1,3419.6,2.33663756]
[1735558464628,4.4673,3420.1,3420.0,0.29293]
[1735558464629,3.2078,3420.1,3420.0,0.29293]
[1735558464829,2.299087,3420.4,3420.3,0.29291]
[1735558465835,5.0646,3420.5,3420.2,2.33663756]
[1735558466024,5.35749,3420.5,3420.4,0.2929]
[1735558466224,1.8568,3420.5,3420.4,0.2929]
[1735558466425,2.14969,3420.5,3420.4,0.2929]
[1735558466631,1.8568,3420.5,3420.4,0.2929]
[1735558471633,0.6444,3420.5,3420.4,0.2929]
[1735558471838,0.29288,3420.7,3420.6,0.29288]
[1735558472041,1.55187,3420.8,3420.7,0.29287]
[1735558472336,3.8168,3420.9,3420.5,2.33663756]
[1735558472337,0.609,3420.9,3420.8,0.29286]
[1735558472538,2.299087,3421.1,3421.0,0.29285]
[1735558473627,1.55183,3421.2,3420.9,1.2796]
[1735558473834,1.55183,3421.2,3421.1,0.29284]
[1735558474830,3.8168,3421.3,3420.3,3.2078]
[1735558475036,0.622,3421.1,3420.5,0.6347]
[1735558475341,0.29286,3420.9,3420.6,0.29288]
[1735558475537,0.29286,3420.9,3420.8,0.29286]
[1735558475736,0.6347,3421.2,3420.7,2.33663756]
[1735558475938,0.6347,3421.2,3421.1,0.29284]
[1735558476440,0.6347,3421.2,3421.0,0.29284]
[1735558476640,0.29284,3421.1,3421.0,0.29284]
[1735558476829,0.92753,3421.2,3421.1,0.29284]
[1735558477642,0.6347,3421.2,3421.1,0.29284]
[1735558478340,4.10963,3421.3,3421.0,2.33663756]
[1735558478536,4.10963,3421.3,3421.2,0.29283]
[1735558478732,4.10963,3421.3,3421.1,1.2545]
[1735558478938,0.29283,3421.2,3421.1,1.54733]
[1735558479642,3.8168,3421.3,3421.1,1.2545]
[1735558479845,4.10962,3421.3,3421.2,0.29283]
[1735558480039,0.29283,3421.2,3421.1,1.54733]
[1735558481942,4.10963,3421.3,3421.2,0.29283]
[1735558482537,0.29283,3421.2,3421.1,1.54733]
[1735558482740,0.29283,3421.2,3421.1,1.2545]
[1735558482935,0.29286,3420.8,3420.7,2.33663756]
[1735558483133,0.29286,3420.8,3420.3,0.2929]
[1735558483134,0.2929,3420.4,3420.3,0.2929]
[1735558483339,0.2929,3420.4,3420.2,2.33663756]
[1735558483340,0.29291,3420.3,3420.2,2.33663756]
[1735558483542,0.94261,3420.3,3420.2,2.62954756]
[1735558484042,0.6497,3420.3,3420.2,2.62954756]
[1735558484446,3.2078,3420.4,3420.3,0.29291]
[1735558484745,3.50066,3420.9,3420.3,1.02518]
[1735558484947,3.50066,3420.9,3420.5,2.33663756]
[1735558485241,3.50066,3420.9,3420.6,0.29288]
[1735558485242,0.29287,3420.7,3420.6,0.29288]
[1735558485836,0.29288,3420.6,3420.5,2.33663756]
[1735558486037,2.17678,3420.6,3420.5,2.33663756]
[1735558486234,2.17678,3420.6,3420.3,0.2929]
[1735558486235,0.2929,3420.4,3420.3,0.2929]
[1735558486548,1.8839,3420.6,3420.2,2.33663756]
[1735558486846,0.29289,3420.5,3420.4,0.29289]
[1735558487041,1.8839,3420.6,3420.2,2.33663756]
[1735558487250,0.29291,3420.3,3420.2,2.62954756]
[1735558487743,0.2929,3420.4,3420.3,0.2929]
[1735558487946,0.29289,3420.5,3420.3,0.29291]
[1735558488446,0.2929,3420.4,3420.3,0.29291]
[1735558490346,0.2929,3420.4,3420.2,2.33663756]
[1735558490550,0.29291,3420.3,3420.2,2.62954756]
[1735558490742,0.2929,3420.4,3420.3,0.29291]
[1735558491350,0.29291,3420.3,3420.2,2.62954756]
[1735558492648,0.29289,3420.5,3420.4,0.2929]
[1735558492950,1.8839,3420.6,3420.5,0.29289]
[1735558493151,1.8839,3420.6,3420.5,2.62952756]
[1735558493541,2.17678,3420.6,3420.5,2.62952756]
[1735558494149,0.6208,3420.6,3420.5,2.62952756]
[1735558495940,0.91368,3420.6,3420.5,2.62952756]
[1735558497356,0.6208,3420.6,3420.2,3.2078]
[1735558497545,0.29292,3420.3,3420.2,0.29291]
[1735558497749,0.29292,3420.2,3420.1,2.62955756]
[1735558498155,0.29292,3420.3,3420.2,0.29291]
[1735558498845,0.6208,3420.6,3420.1,2.33663756]
[1735558499041,0.29291,3420.4,3420.3,0.29291]
[1735558499442,0.29289,3420.5,3420.4,0.2929]
[1735558500857,0.2929,3420.4,3420.3,0.2929]
[1735558501049,0.29293,3420.1,3420.0,0.29293]
[1735558501449,3.2078,3420.4,3419.9,1.2456]
[1735558501646,0.29291,3420.3,3420.2,0.29291]
[1735558501845,3.5007,3420.4,3420.3,0.29291]
[1735558502048,3.2078,3420.4,3420.3,0.29291]
[1735558502251,3.5007,3420.4,3420.3,0.29291]
[1735558502447,3.2078,3420.4,3420.0,2.33663756]
[1735558502652,0.29292,3420.2,3420.1,0.29292]
[1735558506156,0.29293,3420.1,3420.0,2.62956756]
[1735558506356,0.89853,3420.1,3420.0,2.62956756]
[1735558506557,0.6056,3420.1,3420.0,2.62956756]
[1735558507261,2.13583,3420.1,3420.0,2.62956756]
[1735558507959,2.13583,3420.1,3419.9,1.2456]
[1735558507960,0.29293,3420.0,3419.9,0.6114]
[1735558508164,0.29294,3419.9,3419.8,4.5845768]
[1735558509260,5.506887,3420.0,3419.6,0.29612695]
[1735558509673,0.29296,3419.7,3419.6,0.29612695]
[1735558510562,2.299087,3419.9,3419.1,6.92121436]
[1735558510864,0.293,3419.2,3419.1,4.5845768]
[1735558511967,0.29303,3418.9,3418.8,4.5845768]
[1735558512259,3.50083,3418.9,3418.8,4.5845768]
[1735558513363,0.29305,3418.7,3418.5,0.29306]
[1735558513559,3.2078,3418.9,3418.4,3.61983756]
[1735558513762,3.2078,3418.9,3418.7,2.33663756]
[1735558513963,6.749087,3419.4,3418.7,2.33663756]
[1735558514166,5.799877,3419.4,3419.2,0.293]
[1735558514365,5.799877,3419.4,3419.3,1.2406]
[1735558514868,3.50079,3419.4,3419.3,1.2406]
[1735558516665,3.2078,3419.4,3419.3,1.2406]
[1735558516866,3.50075,3419.8,3419.6,0.29296]
[1735558517066,3.50075,3419.8,3419.7,0.29296]
[1735558517561,3.2078,3419.8,3419.7,0.29296]
[1735558518366,0.29296,3419.7,3419.6,0.29297]
[1735558518667,0.29297,3419.6,3419.5,2.33663756]
[1735558518975,3.2078,3419.8,3419.5,2.33663756]
[1735558519264,0.29298,3419.5,3419.3,1.2406]
[1735558519565,0.29299,3419.4,3419.3,1.2406]
[1735558519858,3.2078,3419.8,3419.0,3.2078]
[1735558519859,0.29301,3419.2,3419.0,3.50082]
[1735558520459,0.29301,3419.2,3419.0,3.2078]
[1735558520661,0.29301,3419.2,3419.1,0.29301]
[1735558521062,0.9008,3419.3,3419.1,0.29301]
[1735558521262,0.6078,3419.3,3418.9,2.95183756]
[1735558521571,0.6078,3419.3,3419.2,0.293]
[1735558521958,0.6078,3419.3,3418.9,2.33663756]
[1735558522263,0.9008,3419.3,3419.2,0.293]
[1735558522664,0.6078,3419.3,3419.2,0.293]
[1735558523371,0.6079,3419.6,3419.2,0.293]
[1735558523372,0.6079,3419.6,3419.5,0.29298]
[1735558523569,3.2078,3419.8,3419.7,0.29296]
[1735558525072,5.0525,3420.5,3419.7,3.2078]
[1735558525370,0.29291,3420.3,3420.1,0.29292]
[1735558525774,3.2078,3420.5,3420.1,0.29292]
[1735558525968,3.2078,3420.5,3419.8,2.33663756]
[1735558525969,0.29294,3420.0,3419.9,0.29294]
[1735558526168,3.2078,3420.5,3420.0,0.29293]
[1735558526169,0.2929,3420.4,3420.0,0.29293]
[1735558526470,0.29293,3420.1,3420.0,0.29293]
[1735558526673,0.29293,3420.1,3419.8,2.33663756]
[1735558526871,0.29296,3419.8,3419.6,1.52766]
[1735558527071,0.29296,3419.7,3419.6,1.52766]
[1735558527871,0.29298,3419.5,3419.4,4.5845768]
[1735558528578,3.2078,3419.7,3419.2,0.602]
[1735558528774,0.29299,3419.3,3419.2,0.602]
[1735558528974,0.29299,3419.3,3419.1,4.5845768]
[1735558528975,3.2078,3419.3,3419.1,4.5845768]
[1735558529176,1.5515,3419.2,3419.1,4.5845768]
[1735558529978,0.29304,3418.8,3418.7,0.89504]
[1735558530179,0.29304,3418.8,3418.7,1.48744]
[1735558530380,3.2078,3418.9,3418.4,4.5845768]
[1735558530571,3.2078,3418.9,3418.4,4.8776468]
[1735558530877,0.29306,3418.6,3418.5,0.29306]
[1735558531780,3.2078,3418.9,3418.3,2.33663756]
[1735558531983,3.50083,3418.9,3418.7,0.29304]
[1735558532170,0.29305,3418.7,3418.6,2.62968756]
[1735558532479,0.29305,3418.7,3418.6,2.33663756]
[1735558533776,0.29305,3418.7,3418.6,2.62968756]
[1735558533975,0.29304,3418.8,3418.7,0.29304]
[1735558534170,0.29304,3418.8,3418.6,2.33663756]
[1735558534171,0.29304,3418.8,3418.6,2.62968756]
[1735558534488,0.29305,3418.7,3418.6,2.62968756]
[1735558534676,3.2078,3418.9,3418.6,2.62968756]
[1735558534976,0.29304,3418.8,3418.7,0.29304]
[1735558535176,3.50084,3418.9,3418.7,0.29304]
[1735558535380,0.29304,3418.8,3418.7,0.29304]
[1735558535580,0.29304,3418.8,3418.6,2.62968756]
[1735558536671,3.2078,3418.9,3418.8,0.29304]
[1735558536873,3.2078,3419.3,3419.0,0.29302]
[1735558537077,0.29301,3419.2,3419.0,0.29301]
[1735558538386,3.2078,3419.3,3418.9,2.33663756]
[1735558538573,3.2078,3419.3,3419.2,2.62963756]
[1735558542880,3.50079,3419.3,3419.2,2.62963756]
[1735558543070,3.50079,3419.3,3419.2,0.293]
[1735558543880,3.2078,3419.3,3419.2,0.293]
[1735558544379,3.50079,3419.3,3419.2,0.293]
[1735558544690,3.2078,3419.7,3419.1,0.6382]
[1735558544885,0.293,3419.3,3419.2,0.293]
[1735558546687,0.5256,3419.6,3419.1,0.6382]
[1735558546892,0.29299,3419.4,3419.3,0.29299]
[1735558547185,3.2078,3419.7,3419.2,2.33663756]
[1735558547396,3.2078,3419.7,3419.6,0.29297]
[1735558548890,0.29294,3420.0,3419.5,6.92121436]
[1735558549090,1.1667,3420.1,3419.5,6.92121436]
[1735558549287,1.45963,3420.1,3420.0,0.29293]
[1735558551598,0.29294,3420.0,3419.9,0.29294]
[1735558553596,0.29293,3420.1,3420.0,0.29293]
[1735558553797,3.8309,3420.2,3419.7,1.1712]
[1735558553998,0.29294,3420.0,3419.9,0.29294]
[1735558556194,3.8309,3420.2,3419.7,1.1712]
[1735558556389,0.29295,3419.9,3419.8,0.29295]
[1735558556900,0.29294,3420.0,3419.8,0.29295]
[1735558557402,0.29294,3420.0,3419.9,0.29294]
[1735558559303,3.8309,3420.2,3419.7,1.1712]
[1735558559495,0.29296,3419.7,3419.6,4.5845768]
[1735558559797,3.50076,3419.7,3419.6,4.5845768]
[1735558561501,0.29303,3418.9,3418.8,4.5845768]
[1735558561801,0.29303,3418.9,3418.8,4.8776168]
[1735558562202,0.29303,3418.9,3418.8,4.5845768]
[1735558563194,0.29303,3418.9,3418.7,0.94054]
[1735558563595,3.2078,3419.2,3418.8,2.33663756]
[1735558563901,0.29302,3419.1,3418.9,0.29302]
[1735558564300,3.2078,3419.2,3418.8,2.62966756]
[1735558564301,0.29302,3419.0,3418.8,2.62966756]
[1735558567306,0.29302,3419.0,3418.9,0.29303]
[1735558567608,3.2078,3419.2,3418.9,0.29303]
[1735558567907,0.29303,3418.9,3418.8,2.62966756]
[1735558568502,3.2078,3419.2,3418.6,4.5845768]
[1735558568701,0.29305,3418.7,3418.6,4.5845768]
[1735558569503,0.29305,3418.7,3418.6,4.8776268]
[1735558570200,1.1252,3418.8,3418.5,2.33663756]
[1735558570507,0.29305,3418.7,3418.6,0.29305]
[1735558572997,1.1252,3418.8,3418.5,6.92121436]
[1735558573203,1.41824,3418.8,3418.7,0.29305]
[1735558574802,4.333,3418.8,3418.7,0.29305]
[1735558575007,3.2078,3418.8,3418.7,0.29305]
[1735558576499,3.50084,3418.8,3418.7,0.29305]
[1735558576704,0.29305,3418.7,3418.6,0.29305]
[1735558576910,3.2078,3418.8,3418.7,0.29305]
[1735558577807,2.85175279,3419.2,3419.1,0.29301]
[1735558577808,5.50685279,3419.2,3419.1,0.29301]
[1735558578506,5.50685279,3419.2,3418.5,5.54443756]
[1735558578710,0.29304,3418.8,3418.7,0.29304]
[1735558579007,0.29303,3418.9,3418.8,0.29303]
[1735558579404,3.2078,3419.2,3418.5,5.54443756]
[1735558579610,3.50081,3419.2,3419.1,0.29301]
[1735558579811,3.2078,3419.2,3419.1,0.29301]
[1735558580203,3.5008,3419.2,3419.1,0.29301]
[1735558581210,0.8195,3419.3,3419.2,0.293]
[1735558581810,0.5265,3419.3,3419.0,0.5662]
[1735558582012,0.29301,3419.2,3419.1,0.29301]
[1735558582314,0.29301,3419.1,3419.0,0.29301]
[1735558582611,3.2078,3419.2,3418.8,4.5845768]
[1735558582816,0.29303,3418.9,3418.8,4.5845768]
[1735558583313,1.1469,3419.0,3418.7,4.5845768]
[1735558583314,0.29304,3418.8,3418.7,4.5845768]
[1735558584511,3.50084,3418.8,3418.7,4.5845768]
[1735558584816,0.29307,3418.4,3418.3,4.8776568]
[1735558585808,0.5221,3418.7,3418.2,2.33663756]
[1735558586312,0.29307,3418.4,3418.3,0.29307]
[1735558587901,0.5221,3418.7,3418.2,2.33663756]
[1735558588407,0.29308,3418.4,3418.3,0.29307]
[1735558588806,0.5221,3418.7,3418.2,2.33663756]
[1735558589007,0.29308,3418.3,3418.2,2.62971756]
[1735558590809,0.5221,3418.7,3418.2,2.33663756]
[1735558591004,0.29307,3418.4,3418.3,0.29307]
[1735558600616,0.5221,3418.7,3418.2,2.33663756]
[1735558600815,3.2078,3418.8,3418.1,1.1076]
[1735558600816,3.2078,3418.8,3418.5,2.33663756]
[1735558601015,3.50084,3418.8,3418.7,0.29305]
[1735558601412,3.50084,3418.8,3418.5,2.33663756]
[1735558601413,0.29305,3418.7,3418.6,0.29305]
[1735558603818,3.50084,3418.8,3418.7,0.29305]
[1735558604222,0.29305,3418.7,3418.6,0.81595]
[1735558604924,3.2078,3418.8,3418.6,0.5229]
[1735558605132,3.2078,3418.8,3418.7,0.86505]
[1735558605328,3.50084,3418.8,3418.7,0.572]
[1735558605525,3.2078,3418.8,3418.5,4.8776368]
[1735558605830,0.29305,3418.6,3418.5,4.8776368]
[1735558606233,0.29305,3418.6,3418.5,4.5845768]
[1735558607534,2.29905279,3418.6,3418.3,4.5845768]
[1735558607734,0.29307,3418.4,3418.3,4.5845768]
[1735558608936,0.29307,3418.4,3418.3,4.8776568]
[1735558609131,2.29905279,3418.6,3418.3,4.5845768]
[1735558609531,2.29905279,3418.6,3418.4,2.33663756]
[1735558609735,2.29905279,3418.6,3418.5,0.84636]
[1735558610431,2.59210279,3418.7,3418.6,0.29305]
[1735558611033,2.59210279,3418.7,3418.6,0.82625]
[1735558612338,2.59210279,3418.7,3418.6,0.5332]
[1735558612541,0.29305,3418.6,3418.5,0.5533]
[1735558612729,0.29305,3418.6,3418.5,0.84636]
[1735558613442,0.29305,3418.6,3418.5,0.5533]
[1735558614243,0.29306,3418.5,3418.4,4.5845768]
[1735558614542,0.86756,3418.5,3418.4,4.5845768]
[1735558616843,2.29905279,3418.6,3418.4,4.5845768]
[1735558616844,2.59211279,3418.6,3418.5,0.29306]
[1735558617141,0.29306,3418.5,3418.4,4.8776468]
[1735558617544,2.59211279,3418.6,3418.5,0.29306]
[1735558617747,0.29306,3418.6,3418.5,0.29306]
[1735558618144,0.29305,3418.6,3418.5,0.29306]
[1735558618441,2.29905279,3418.7,3418.4,4.5845768]
[1735558618645,2.29905279,3418.7,3418.6,0.29305]
[1735558620446,3.50084,3418.8,3418.7,0.29305]
[1735558620746,0.29305,3418.7,3418.6,0.29305]
[1735558621140,3.50084,3418.8,3418.7,0.29305]
[1735558621343,3.2078,3418.8,3418.7,2.62968756]
[1735558623049,2.29905279,3419.3,3419.2,0.293]
[1735558623241,2.29905279,3419.3,3419.2,2.62963756]
[1735558623438,2.59204279,3419.3,3419.2,0.293]
[1735558624448,3.2078,3419.4,3419.2,4.59483577]
[1735558624651,3.50079,3419.4,3419.3,0.29299]
[1735558624842,3.2078,3419.4,3419.3,0.29299]
[1735558625252,3.2078,3419.4,3419.2,4.59483577]
[1735558625450,1.94749,3419.3,3419.2,4.59483577]
[1735558626444,1.94749,3419.3,3419.1,4.59483577]
[1735558626445,1.6545,3419.3,3419.1,4.59483577]
[1735558626645,0.293,3419.2,3419.1,4.59483577]
[1735558626847,1.6545,3419.3,3419.2,0.293]
[1735558626848,1.4252,3419.3,3419.2,0.293]
[1735558627148,1.4252,3419.3,3419.1,4.59483577]
[1735558627149,0.293,3419.2,3419.1,4.59483577]
[1735558627550,0.293,3419.2,3419.1,4.88784577]
[1735558628651,1.4252,3419.3,3419.2,0.293]
[1735558629151,1.1322,3419.3,3419.2,0.293]
[1735558629343,3.2078,3419.4,3419.1,4.59483577]
[1735558629546,3.2078,3419.4,3419.3,0.29299]
[1735558629742,2.29905279,3419.5,3419.2,6.10833756]
[1735558630039,2.29905279,3419.5,3419.4,0.29299]
[1735558630954,3.2078,3420.2,3419.3,17.76928852]
[1735558630955,2.29905279,3420.1,3419.3,17.76928852]
[1735558631152,2.59198279,3420.1,3420.0,0.29293]
[1735558631355,2.29905279,3420.1,3420.0,0.29293]
[1735558631845,2.59198279,3420.1,3420.0,0.29293]
[1735558632044,2.59198279,3420.1,3419.7,0.573]
[1735558632045,5.50685279,3420.2,3419.8,0.5717]
[1735558632242,5.50685279,3420.2,3419.8,0.86465]
[1735558632243,0.29293,3420.1,3419.8,0.86465]
[1735558632447,5.50685279,3420.2,3419.8,0.86465]
[1735558632448,0.29294,3420.0,3419.8,0.86465]
[1735558633157,0.29294,3420.0,3419.8,0.5717]
[1735558633452,0.29294,3420.0,3419.9,0.29294]
[1735558633755,3.2078,3420.2,3419.8,0.5717]
[1735558633950,0.29293,3420.1,3420.0,0.29293]
[1735558634263,0.29294,3420.0,3419.8,0.86465]
[1735558635751,3.2078,3420.2,3419.9,0.29294]
[1735558635942,0.29293,3420.1,3419.9,0.29294]
[1735558636147,0.29294,3420.0,3419.8,0.86465]
[1735558636348,3.2078,3420.2,3419.8,0.86465]
[1735558636551,0.29294,3419.9,3419.8,0.86465]
[1735558637154,3.2078,3420.2,3419.2,11.38814774]
[1735558637155,0.29298,3419.5,3419.2,10.09174774]
[1735558637454,0.29298,3419.5,3419.2,6.88394774]
[1735558637655,0.29299,3419.4,3419.3,4.58929849]
[1735558637949,3.2078,3419.7,3419.3,4.58929849]
[1735558637950,0.5627,3419.6,3419.3,4.58929849]
[1735558638147,3.2078,3419.7,3419.6,0.29297]
[1735558640850,3.50076,3419.7,3419.6,0.29297]
[1735558641853,3.2078,3419.7,3419.6,0.29297]
[1735558643248,3.2078,3419.7,3419.6,2.62960756]
[1735558643855,3.2078,3419.7,3419.6,0.29297]
[1735558644050,3.50076,3419.7,3419.6,0.29297]
[1735558644354,3.2078,3419.7,3419.6,0.29297]
[1735558646660,3.2078,3420.3,3419.6,7.33663756]
[1735558646956,2.29905279,3420.5,3419.6,7.33663756]
[1735558646957,2.29905279,3420.5,3420.4,0.2929]
[1735558647258,2.29905279,3420.5,3420.4,3.5007]
[1735558647754,2.29905279,3420.5,3420.4,8.5007]
[1735558648352,2.29905279,3420.5,3420.4,3.5007]
[1735558648653,3.2078,3421.3,3420.3,2.7874]
[1735558648654,3.2078,3420.7,3420.3,1.181]
[1735558648954,0.29292,3420.2,3420.1,4.58929849]
[1735558649652,0.29293,3420.0,3419.9,0.29294]
[1735558650248,4.3366,3420.3,3419.7,4.58929849]
[1735558650451,4.62951,3420.3,3419.8,0.5713]
[1735558650756,4.3366,3420.3,3420.2,0.29292]
[1735558651049,3.2078,3420.3,3420.2,0.29292]
[1735558651457,3.2078,3420.3,3420.2,2.62955756]
[1735558652451,3.2078,3420.3,3420.2,0.29292]
[1735558654555,3.7815,3420.7,3420.2,2.33663756]
[1735558654753,3.7815,3420.7,3420.6,0.29288]
[1735558655757,3.7815,3420.7,3420.3,1.1346]
[1735558655953,3.7815,3420.7,3419.8,1.30366]
[1735558655954,3.7815,3420.7,3419.9,6.92593605]
[1735558656256,3.7815,3420.7,3420.3,0.29291]
[1735558656257,0.2929,3420.4,3420.3,0.29291]
[1735558656457,3.7815,3420.7,3419.9,8.05153605]
[1735558656654,3.7815,3420.7,3420.3,0.2929]
[1735558656861,0.2929,3420.4,3420.3,0.2929]
[1735558657060,3.7815,3420.7,3419.9,3.46223756]
[1735558657253,0.29292,3420.2,3420.1,0.29292]
[1735558657648,3.7815,3420.7,3419.9,0.29294]
[1735558657649,0.29293,3420.0,3419.9,0.29294]
[1735558657855,0.29295,3419.9,3419.8,0.29295]
[1735558658064,0.5396,3419.9,3419.6,7.48663605]
[1735558658261,0.83255,3419.9,3419.8,0.29295]
[1735558658955,0.83255,3419.9,3419.6,7.48663605]
[1735558659151,0.83255,3419.9,3419.8,0.29295]
[1735558659564,0.5396,3419.9,3419.8,0.29295]
[1735558660056,0.5334,3420.1,3420.0,0.29293]
[1735558660252,1.0926,3420.2,3420.1,0.29293]
[1735558661263,1.38552,3420.2,3420.1,0.29293]
[1735558662162,1.0926,3420.2,3420.1,0.29293]
[1735558662356,3.2078,3420.3,3420.2,0.29292]
[1735558663063,3.2078,3420.3,3419.6,7.65836605]
[1735558663252,3.2078,3420.3,3419.7,1.723]
[1735558663455,0.29292,3420.2,3420.1,0.29292]
[1735558664771,0.29294,3419.9,3419.8,4.88224849]
[1735558664960,1.0739,3420.1,3419.7,6.31229849]
[1735558665158,1.0739,3420.1,3419.7,6.60525849]
[1735558665159,0.82005,3419.8,3419.7,6.60525849]
[1735558665562,0.5271,3419.8,3419.7,6.60525849]
[1735558666066,0.82005,3419.8,3419.7,6.60525849]
[1735558666264,0.82005,3419.8,3419.7,5.76929849]
[1735558666564,0.5271,3419.8,3419.7,4.88225849]
[1735558666759,0.82005,3419.8,3419.7,4.88225849]
[1735558667067,4.02785,3419.8,3419.7,4.58929849]
[1735558668468,3.7349,3419.8,3419.6,0.29297]
[1735558668661,0.29297,3419.6,3419.5,0.29297]
[1735558669466,0.29296,3419.7,3419.6,0.29297]
[1735558670164,3.7349,3419.8,3419.4,4.58929849]
[1735558670363,3.2078,3419.8,3419.7,0.29296]
[1735558670862,3.2078,3419.8,3419.7,0.82096]
[1735558671069,2.29905279,3420.1,3420.0,0.29293]
[1735558671262,2.29905279,3420.1,3420.0,2.62956756]
[1735558671458,4.56540385,3420.5,3420.0,2.33663756]
[1735558671459,6.86445664,3420.5,3420.0,2.33663756]